bitfinex/quotes_ETHUSD_20260304
["timestamp","ask_amount","ask_price","bid_price","bid_amount"]
[1772635831085,5.25699918,2077.5,2075.8,3.90209512]
[1772635831416,2.09529316,2077.2,2075.3,5.10674023]
[1772635831618,0.065536,2077.1,2075.3,5.10674023]
[1772635832085,2.09529316,2076.8,2075.3,5.10674023]
[1772635832286,1.203833,2076.7,2075.3,5.10674023]
[1772635832610,1.203833,2076.7,2075.4,3.90209512]
[1772635833185,4.88086801,2077.1,2075.4,3.90209512]
[1772635833186,7.35211859,2077.8,2075.4,3.90209512]
[1772635833408,1.46,2077.5,2075.4,3.90209512]
[1772635834201,1.20342736,2077.4,2075.5,5.10662414]
[1772635834399,0.065536,2077.3,2075.5,5.10662414]
[1772635834599,4.11916575,2077.3,2075.5,5.10662414]
[1772635834819,0.065536,2077.0,2075.5,5.10662414]
[1772635835006,7.04316812,2077.0,2075.2,4.81864459]
[1772635835533,1.459,2076.9,2075.2,8.72073971]
[1772635836083,1.458,2076.8,2075.3,3.90209512]
[1772635836305,1.203833,2076.7,2075.5,3.90209512]
[1772635836583,0.065536,2077.3,2075.5,3.90209512]
[1772635836584,5.25705711,2077.5,2075.5,3.90209512]
[1772635836815,1.20325359,2077.7,2075.7,3.90209512]
[1772635837015,1.458,2077.6,2075.7,3.90209512]
[1772635837214,1.458,2077.6,2075.9,3.90209512]
[1772635837430,0.002,2076.5,2075.9,3.90209512]
[1772635837726,0.002,2076.7,2075.9,3.90209512]
[1772635837931,1.457,2077.5,2075.9,3.90209512]
[1772635838230,0.002,2077.0,2076.0,1.20423892]
[1772635838433,0.002,2077.0,2075.9,5.10638784]
[1772635838913,0.002,2077.0,2076.0,3.90209512]
[1772635839111,0.002,2077.0,2076.2,3.90209512]
[1772635840286,0.002,2077.0,2076.3,1.20406492]
[1772635840516,0.002,2077.0,2075.6,5.10656611]
[1772635841020,1.455,2076.9,2075.6,5.10656611]
[1772635841397,4.11916575,2076.8,2075.2,1.20470316]
[1772635841601,1.455,2076.9,2075.3,3.90209512]
[1772635842317,0.002,2077.0,2075.5,3.90209512]
[1772635842493,0.002,2077.0,2075.7,3.90209512]
[1772635842689,0.002,2077.0,2075.9,3.90209512]
[1772635844388,0.002,2077.0,2076.0,5.10633404]
[1772635844691,0.002,2077.0,2076.0,1.20423892]
[1772635844890,0.002,2077.0,2075.9,1.20427549]
[1772635845118,0.067536,2077.0,2075.5,1.204484]
[1772635845722,4.12116575,2077.0,2075.5,1.204484]
[1772635845921,1.519536,2077.0,2075.5,1.204484]
[1772635846420,0.002,2077.0,2075.4,3.90209512]
[1772635847002,0.002,2077.0,2075.7,3.90209512]
[1772635847317,0.002,2077.0,2076.3,3.90209512]
[1772635847694,1.52425776,2077.8,2076.3,3.90209512]
[1772635848324,1.52425776,2077.8,2076.4,5.21418541]
[1772635849236,1.52425776,2077.8,2076.5,4.01017848]
[1772635849833,1.52425776,2077.8,2076.6,4.01017848]
[1772635849834,0.32104876,2077.8,2076.6,4.01017848]
[1772635850032,4.81139765,2078.4,2076.6,4.01017848]
[1772635850331,4.81139765,2078.4,2076.7,1.203833]
[1772635850646,3.88923899,2078.3,2076.7,1.203833]
[1772635850944,4.03872398,2077.4,2075.0,6.26349597]
[1772635851236,4.03872398,2077.0,2075.5,0.001]
[1772635851433,0.065536,2076.5,2075.5,0.001]
[1772635851601,1.447,2076.4,2075.5,0.001]
[1772635852010,3.82370299,2076.6,2075.5,0.001]
[1772635852210,1.447,2076.7,2075.5,0.001]
[1772635852422,0.002,2076.8,2075.5,0.001]
[1772635852634,1.448,2076.8,2075.5,0.001]
[1772635852817,0.065536,2076.7,2075.5,0.001]
[1772635853837,1.446,2076.6,2075.5,0.001]
[1772635854015,4.03872398,2076.5,2075.3,0.001]
[1772635854336,0.065536,2076.3,2075.3,0.001]
[1772635854640,1.20400693,2076.4,2075.3,0.001]
[1772635854834,5.02770992,2076.4,2075.3,0.001]
[1772635855043,5.02770992,2076.4,2075.0,0.001]
[1772635855045,3.88923899,2076.0,2075.0,0.001]
[1772635855247,9.54348736,2076.3,2074.4,0.001]
[1772635855248,3.88923899,2075.7,2074.4,0.001]
[1772635855414,0.065536,2075.4,2074.4,0.001]
[1772635855738,1.444,2075.3,2074.4,0.001]
[1772635856166,3.82370299,2075.5,2074.4,0.001]
[1772635856341,1.20447099,2075.6,2074.4,0.001]
[1772635857941,1.20447099,2075.6,2074.4,4.01117848]
[1772635858312,4.81788398,2075.7,2074.5,1.20510966]
[1772635858837,4.81788398,2075.7,2074.4,8.83161713]
[1772635858838,0.065536,2075.3,2074.2,0.001]
[1772635859207,0.065536,2075.3,2074.2,1.20625607]
[1772635859408,1.443,2075.3,2074.2,0.001]
[1772635859946,1.443,2075.3,2074.2,1.20628115]
[1772635860146,1.443,2075.3,2074.2,0.001]
[1772635860343,1.442,2075.3,2074.2,0.001]
[1772635861118,0.065536,2075.2,2074.2,0.001]
[1772635861341,1.442,2075.3,2074.2,0.001]
[1772635861839,1.20458706,2075.4,2074.2,0.001]
[1772635862212,3.82370299,2075.9,2074.4,4.01017848]
[1772635862213,1.20435494,2075.9,2074.4,4.01017848]
[1772635862428,4.87523201,2076.8,2074.6,4.01017848]
[1772635862429,0.002,2076.8,2074.6,4.01017848]
[1772635862634,2.64489097,2076.7,2074.8,4.01017848]
[1772635862942,1.20577952,2076.8,2075.0,4.01017848]
[1772635863475,1.2058,2076.8,2075.0,4.01017848]
[1772635863627,0.002,2076.8,2075.4,4.01017848]
[1772635863833,1.20578102,2076.8,2075.4,4.01017848]
[1772635864180,0.002,2077.0,2075.4,4.01017848]
[1772635864181,0.002,2077.0,2075.7,4.01017848]
[1772635864480,0.002,2077.0,2076.1,4.01017848]
[1772635864830,0.002,2077.0,2076.2,4.01017848]
[1772635865260,1.20320703,2077.8,2076.2,4.01017848]
[1772635865488,1.20284834,2078.4,2076.6,4.01017848]
[1772635865960,0.002,2078.7,2076.8,4.01017848]
[1772635866186,0.002,2078.7,2077.2,4.01017848]
[1772635866364,0.002,2078.7,2077.3,1.20348529]
[1772635866536,1.439,2078.6,2076.9,1.20371707]
[1772635866932,0.065536,2078.5,2076.9,5.21389555]
[1772635867348,1.503536,2078.5,2076.9,5.21389555]
[1772635867741,1.438,2078.5,2076.9,5.21389555]
[1772635867942,0.002,2078.7,2077.0,4.01017848]
[1772635868266,0.002,2078.9,2077.4,4.01017848]
[1772635868465,0.002,2078.9,2077.6,4.01017848]
[1772635868839,0.002,2078.9,2077.8,4.01017848]
[1772635869042,0.002,2078.9,2077.9,4.01017848]
[1772635869435,0.002,2079.2,2077.9,4.01017848]
[1772635869638,0.002,2079.2,2078.3,4.01017848]
[1772635870062,4.80793452,2079.9,2078.3,4.01017848]
[1772635870063,4.80560665,2081.0,2078.9,4.01017848]
[1772635870262,4.80560665,2081.0,2079.1,4.01017848]
[1772635870464,4.80560665,2081.0,2079.2,1.20238553]
[1772635870679,4.80560665,2081.0,2079.1,5.21257967]
[1772635870680,0.065536,2080.8,2079.1,5.21257967]
[1772635871183,6.74770536,2080.4,2078.6,5.21289154]
[1772635871385,5.32423899,2080.3,2078.5,2.47974321]
[1772635871592,2.92400237,2079.5,2077.9,1.20308722]
[1772635871882,0.14948499,2079.3,2077.6,4.01017848]
[1772635872052,1.2856532,2079.8,2077.6,4.01017848]
[1772635872249,1.2856532,2079.8,2077.5,1.20336943]
[1772635872250,1.434,2080.0,2077.8,4.01017848]
[1772635872482,1.20203865,2079.8,2078.0,4.01017848]
[1772635872885,0.065536,2079.7,2078.0,4.01017848]
[1772635873387,0.065536,2079.7,2077.6,1.20331151]
[1772635873388,0.065536,2079.5,2077.6,1.20331151]
[1772635873587,0.065536,2079.2,2077.5,5.21350936]
[1772635873759,0.065536,2079.2,2077.6,4.01017848]
[1772635874456,1.20221207,2079.5,2077.8,4.01017848]
[1772635875489,0.21502099,2079.4,2077.8,4.01017848]
[1772635875676,0.14948499,2079.3,2077.4,4.81361471]
[1772635875882,4.03872398,2079.4,2077.5,4.01017848]
[1772635875883,3.88923899,2079.4,2077.5,4.01017848]
[1772635876080,0.14948499,2079.3,2077.5,4.01017848]
[1772635876276,0.14948499,2079.1,2077.2,1.274]
[1772635876481,0.065536,2078.6,2077.0,4.01017848]
[1772635876685,0.065536,2078.4,2076.7,1.20380104]
[1772635876857,0.065536,2078.6,2076.8,4.01017848]
[1772635877389,0.065536,2078.6,2076.3,4.81623616]
[1772635877390,0.065536,2078.3,2076.1,4.01017848]
[1772635878510,0.14948499,2078.0,2076.2,1.20412291]
[1772635878721,0.065536,2077.8,2076.2,3.73513128]
[1772635879065,1.429,2078.0,2076.2,3.73513128]
[1772635879865,0.065536,2077.9,2076.2,3.73513128]
[1772635880381,4.92679238,2077.9,2076.2,3.73513128]
[1772635880580,1.20319568,2077.8,2076.4,3.73513128]
[1772635881100,1.20319568,2077.8,2075.8,2.66075123]
[1772635881101,0.065536,2077.7,2076.0,4.81687047]
[1772635881338,0.065536,2077.7,2076.0,8.55200175]
[1772635881627,1.20319568,2077.8,2076.1,3.73513128]
[1772635882195,1.20319568,2077.8,2076.3,3.73513128]
[1772635882405,1.20319568,2077.8,2075.8,4.93944663]
[1772635882406,0.065536,2077.5,2075.8,4.93944663]
[1772635882613,1.20342736,2077.4,2075.8,4.93944663]
[1772635883035,1.20342736,2077.4,2075.9,3.83178976]
[1772635883650,1.20319568,2077.8,2076.3,3.83178976]
[1772635883811,1.20319568,2077.8,2076.4,3.83178976]
[1772635884498,4.8125515,2077.9,2076.5,1.20394895]
[1772635884900,4.93790817,2077.6,2075.8,3.83178976]
[1772635885919,0.065536,2077.4,2075.8,3.83178976]
[1772635886534,1.20348529,2077.3,2076.0,3.83178976]
[1772635886740,1.20348529,2077.3,2075.9,1.20429693]
[1772635886945,1.20348529,2077.3,2075.5,3.83178976]
[1772635886946,0.065536,2077.2,2075.6,1.20442627]
[1772635887118,0.065536,2077.2,2074.9,0.065536]
[1772635887119,4.10505098,2077.1,2075.1,1.20476121]
[1772635887315,0.21502099,2076.8,2075.1,1.20476121]
[1772635887514,1.424,2076.7,2075.1,1.20476121]
[1772635887929,1.423,2076.7,2075.1,5.03655097]
[1772635888328,4.12748766,2077.3,2075.2,3.83178976]
[1772635888530,1.63802099,2077.2,2075.2,3.83178976]
[1772635888716,0.065536,2077.0,2075.3,1.20464511]
[1772635888921,0.065536,2077.0,2075.4,3.83178976]
[1772635889217,1.20360117,2077.1,2075.6,3.83178976]
[1772635889626,1.20360117,2077.1,2075.5,1.268]
[1772635889627,1.20331151,2077.6,2075.9,0.065536]
[1772635889845,1.20331151,2077.6,2076.2,3.83178976]
[1772635890046,1.424,2078.1,2076.2,3.83178976]
[1772635890047,1.20307988,2078.0,2076.2,3.83178976]
[1772635890257,6.23629978,2078.1,2076.1,2.49441195]
[1772635890258,0.002,2078.1,2076.4,3.83178976]
[1772635890454,1.2050486,2078.1,2076.4,3.83178976]
[1772635890831,0.002,2078.1,2076.6,3.83178976]
[1772635891150,0.002,2078.3,2076.6,4.04681075]
[1772635891551,0.002,2078.3,2077.0,3.83178976]
[1772635891752,0.002,2078.3,2077.2,3.83178976]
[1772635892248,0.002,2078.3,2077.3,3.83178976]
[1772635892624,0.002,2078.6,2077.5,3.83178976]
[1772635892824,0.002,2078.6,2077.7,3.83178976]
[1772635893020,1.20215426,2079.6,2077.7,3.83178976]
[1772635893225,1.20192307,2080.0,2078.1,3.83178976]
[1772635893471,4.80746117,2080.2,2078.3,3.83178976]
[1772635893633,0.065536,2080.1,2078.3,3.83178976]
[1772635893962,6.22646117,2080.2,2078.3,3.83178976]
[1772635894123,4.02110199,2079.9,2077.7,3.83178976]
[1772635894430,2.98953837,2080.1,2077.7,3.83178976]
[1772635894431,4.02110199,2079.5,2077.7,3.83178976]
[1772635894634,0.065536,2079.3,2077.6,1.20331151]
[1772635894832,0.065536,2079.3,2077.4,4.81324605]
[1772635894833,2.08417166,2079.0,2077.4,4.81324605]
[1772635895230,3.50217166,2079.0,2077.4,8.64503581]
[1772635895632,1.418,2079.0,2077.4,8.64503581]
[1772635895831,0.002,2079.1,2077.5,3.83178976]
[1772635896763,0.002,2079.1,2077.1,3.45674485]
[1772635896764,0.002,2079.1,2077.1,3.83178976]
[1772635897074,0.065536,2078.8,2077.1,5.0353526]
[1772635897230,0.065536,2078.5,2076.7,2.46777503]
[1772635897429,2.08417166,2078.2,2076.6,5.03565362]
[1772635898747,1.20302199,2078.1,2076.6,5.03565362]
[1772635899151,1.20302199,2078.1,2076.7,3.83178976]
[1772635900787,4.81208796,2078.4,2076.8,1.20377503]
[1772635900950,0.065536,2078.3,2076.8,1.20377503]
[1772635901451,2.08417166,2077.8,2076.3,1.20506151]
[1772635901884,0.065536,2077.8,2076.3,1.20506151]
[1772635902378,6.10527365,2077.8,2076.3,1.20506222]
[1772635902594,6.10527365,2077.8,2076.3,0.001]
[1772635902882,1.20325359,2077.7,2076.3,0.001]
[1772635903450,1.20325359,2077.7,2076.3,3.83278976]
[1772635904865,4.81301439,2077.8,2076.4,1.20400693]
[1772635905145,4.81210377,2078.1,2076.5,3.83178976]
[1772635905346,1.2029641,2078.2,2076.5,3.83178976]
[1772635905548,1.2029641,2078.2,2076.6,3.83178976]
[1772635905749,1.2029641,2078.2,2076.7,3.83178976]
[1772635905972,4.81139077,2078.5,2076.8,3.83178976]
[1772635906176,4.81139077,2078.5,2076.8,2.25331749]
[1772635906362,4.81139077,2078.5,2076.9,3.83178976]
[1772635906751,1.20267474,2078.7,2076.9,3.83178976]
[1772635906952,4.81069899,2078.9,2077.1,3.83178976]
[1772635907279,6.89640784,2079.1,2077.5,3.83178976]
[1772635907280,0.002,2079.1,2077.5,3.83178976]
[1772635907477,1.20444527,2079.1,2077.7,3.83178976]
[1772635907778,0.002,2079.1,2077.7,3.83178976]
[1772635907960,0.002,2079.1,2077.8,3.83178976]
[1772635908358,0.002,2079.6,2077.8,3.83178976]
[1772635908359,0.32141471,2080.7,2078.0,2.25331749]
[1772635908576,1.20157646,2080.6,2078.7,3.9827721]
[1772635908755,1.20157646,2080.6,2078.6,2.2484755]
[1772635908756,1.52297208,2080.7,2078.9,3.9827721]
[1772635908961,0.32141471,2080.7,2079.1,3.9827721]
[1772635909276,1.52293567,2080.7,2079.1,3.9827721]
[1772635909447,0.32141471,2080.7,2079.1,3.9827721]
[1772635909653,0.32141471,2080.7,2079.5,3.9827721]
[1772635909852,4.80413878,2081.6,2079.7,3.9827721]
[1772635910784,10.83635518,2082.0,2079.6,1.258]
[1772635910785,4.80257722,2082.3,2080.1,3.9827721]
[1772635910988,1.20048019,2082.5,2080.5,3.9827721]
[1772635911155,1.20048019,2082.5,2080.7,3.9827721]
[1772635911355,2.08417166,2082.2,2080.4,3.90752753]
[1772635911665,2.08417166,2082.2,2080.4,1.20169198]
[1772635911666,0.065536,2082.1,2080.4,1.20169198]
[1772635911980,0.065536,2082.1,2080.2,4.80721112]
[1772635911981,3.98604305,2082.1,2080.2,4.80721112]
[1772635912179,1.407,2082.0,2080.2,4.80721112]
[1772635912381,1.20048019,2082.5,2080.3,3.9827721]
[1772635912680,0.065536,2082.4,2080.5,3.9827721]
[1772635912881,1.20059549,2082.3,2080.7,3.9827721]
[1772635913082,4.80215136,2082.5,2080.7,3.9827721]
[1772635913279,4.80215136,2082.5,2080.6,1.20157646]
[1772635913280,4.80215136,2082.5,2080.8,3.9827721]
[1772635913953,0.065536,2082.4,2080.6,1.20157646]
[1772635914295,4.80215136,2082.5,2080.0,3.9827721]
[1772635914296,3.98604305,2082.1,2080.0,3.9827721]
[1772635914653,0.065536,2081.7,2080.0,3.9827721]
[1772635914854,1.20105693,2081.5,2080.1,1.20186529]
[1772635915675,1.20105693,2081.5,2080.2,3.9827721]
[1772635916086,0.065536,2081.4,2079.8,1.20203865]
[1772635916762,3.28522859,2081.5,2079.8,1.20203865]
[1772635916763,1.20105693,2081.5,2079.9,3.9827721]
[1772635916986,1.20105693,2081.5,2080.1,3.9827721]
[1772635918471,1.20103136,2081.6,2080.1,3.9827721]
[1772635918857,2.66930449,2082.1,2080.3,1.20174974]
[1772635919060,2.08417166,2081.5,2079.1,3.9827721]
[1772635919265,0.065536,2081.6,2079.1,3.9827721]
[1772635919266,2.08417166,2081.1,2079.3,3.9827721]
[1772635919489,1.402,2081.2,2079.3,3.9827721]
[1772635920163,1.402,2081.2,2079.5,3.9827721]
[1772635920366,0.065536,2081.6,2079.5,3.9827721]
[1772635920785,0.065536,2081.4,2079.6,1.251]
[1772635921116,0.21502099,2081.0,2078.9,6.27610407]
[1772635921265,2.08417166,2080.7,2079.0,1.2025012]
[1772635921964,0.065536,2080.8,2079.0,1.2025012]
[1772635922163,0.065536,2080.8,2079.1,3.9827721]
[1772635922591,0.065536,2080.8,2078.9,5.90100181]
[1772635922592,3.98604305,2080.6,2078.9,1.09083077]
[1772635922793,2.08417166,2080.3,2078.8,1.20258407]
[1772635923095,4.80655173,2080.5,2078.8,1.20258407]
[1772635923292,4.80655173,2080.5,2078.9,3.9827721]
[1772635923602,3.98604305,2080.2,2078.5,1.20275852]
[1772635923806,3.98604305,2080.2,2078.4,5.1855832]
[1772635923966,2.14970766,2079.9,2078.2,4.81169623]
[1772635924319,2.14970766,2079.9,2077.9,1.20410992]
[1772635924320,2.08417166,2079.5,2077.9,1.20410992]
[1772635924470,6.25251498,2080.1,2077.9,1.20410992]
[1772635924471,2.08417166,2080.1,2078.0,3.9827721]
[1772635924798,2.08417166,2080.1,2077.9,1.20410992]
[1772635924799,3.98604305,2080.0,2078.1,3.9827721]
[1772635925004,1.20209645,2079.7,2078.1,5.18576897]
[1772635925416,0.065536,2079.6,2078.1,5.18576897]
[1772635925709,6.00467871,2079.2,2077.9,0.001]
[1772635926007,5.38404305,2079.1,2077.9,0.001]
[1772635926209,1.20209645,2079.7,2077.9,1.20413604]
[1772635926210,6.00467871,2079.6,2077.9,1.20413604]
[1772635926504,1.463536,2079.5,2077.9,1.20413604]
[1772635926706,1.35158144,2079.7,2078.0,3.9827721]
[1772635926707,1.20209645,2079.7,2078.0,3.9827721]
[1772635926914,1.20221207,2079.5,2077.9,0.001]
[1772635927096,6.00467871,2079.2,2077.9,0.001]
[1772635927298,1.20221207,2079.5,2077.6,0.001]
[1772635927299,3.98604305,2078.7,2077.6,0.001]
[1772635927598,0.065536,2078.5,2077.6,0.001]
[1772635927803,6.00467871,2079.2,2077.6,0.001]
[1772635927967,1.61202099,2079.1,2077.6,0.001]
[1772635928169,1.462536,2079.1,2077.6,0.001]
[1772635928375,1.397,2079.0,2077.6,3.9837721]
[1772635928609,0.065536,2078.9,2077.6,3.9837721]
[1772635928906,0.065536,2079.2,2077.6,3.9837721]
[1772635929080,1.20244336,2079.1,2077.7,1.20325359]
[1772635929285,1.20244336,2079.1,2077.8,3.9827721]
[1772635930004,3.98604305,2079.0,2077.6,1.20429704]
[1772635930304,1.20244336,2079.1,2077.7,3.9827721]
[1772635930806,1.20244336,2079.1,2077.6,1.20429704]
[1772635931017,1.20244336,2079.1,2077.6,5.18706914]
[1772635931322,4.80977345,2079.2,2077.6,5.18706914]
[1772635931875,4.80977345,2079.2,2077.6,5.18606914]
[1772635932212,1.20221207,2079.5,2077.7,3.9827721]
[1772635932385,1.52257668,2079.6,2077.9,3.9827721]
[1772635933016,1.52257668,2079.6,2078.0,5.2287721]
[1772635933313,1.52257668,2079.6,2078.1,5.18579409]
[1772635933704,1.52257668,2079.6,2078.1,1.20302199]
[1772635934281,1.52257668,2079.6,2078.2,3.9827721]
[1772635935282,1.52257668,2079.6,2078.3,5.18567832]
[1772635935701,0.32038585,2079.6,2078.4,3.9827721]
[1772635935909,2.08417166,2080.4,2078.3,1.20290622]
[1772635935910,4.80652052,2080.6,2078.5,3.9827721]
[1772635936097,1.20163422,2080.5,2078.5,3.9827721]
[1772635936614,1.20163422,2080.5,2078.7,3.9827721]
[1772635936813,1.20163422,2080.5,2078.9,3.9827721]
[1772635937012,1.20163422,2080.5,2079.0,5.2277721]
[1772635937214,4.80652052,2080.6,2079.2,1.20238553]
[1772635937402,4.80652052,2080.6,2079.3,3.9827721]
[1772635938404,2.08417166,2080.5,2078.9,1.20255904]
[1772635938621,4.80652052,2080.6,2079.0,3.94782144]
[1772635938804,6.19752052,2080.6,2079.0,3.94782144]
[1772635939202,3.79630317,2079.9,2078.1,2.70583555]
[1772635939442,0.065536,2079.5,2078.0,5.15086251]
[1772635940705,1.39,2079.6,2078.0,5.15086251]
[1772635940706,1.39,2079.6,2078.1,3.94782144]
[1772635941027,1.35140806,2080.0,2078.1,3.94782144]
[1772635941028,1.20192307,2080.0,2078.9,0.001]
[1772635941373,4.8076923,2080.1,2078.9,0.001]
[1772635941512,0.065536,2080.0,2078.9,0.001]
[1772635941702,4.8076923,2080.1,2078.9,0.001]
[1772635942521,4.8076923,2080.1,2078.9,3.94882144]
[1772635943233,1.20174974,2080.3,2078.9,3.94882144]
[1772635943432,0.002,2080.4,2079.1,3.74775667]
[1772635943625,0.002,2080.4,2079.1,4.98975667]
[1772635944204,0.002,2080.4,2079.2,3.74775667]
[1772635945216,0.002,2080.4,2078.9,1.20353023]
[1772635945434,0.002,2080.4,2078.9,3.74875667]
[1772635945629,2.08617166,2080.4,2078.9,3.74875667]
[1772635945953,0.002,2080.4,2078.9,3.74875667]
[1772635946950,0.002,2080.4,2079.1,3.74775667]
[1772635947159,0.002,2080.4,2079.3,3.74775667]
[1772635947344,0.002,2080.4,2079.5,3.74775667]
[1772635947546,0.002,2080.6,2079.7,3.74775667]
[1772635948349,1.52256429,2081.5,2079.9,3.74775667]
[1772635948561,1.52256429,2081.5,2080.1,3.74775667]
[1772635948754,1.20108829,2081.5,2080.3,3.74775667]
[1772635949319,4.80322088,2082.0,2080.3,3.74775667]
[1772635949523,4.80322088,2082.0,2080.6,1.20157646]
[1772635950454,4.80322088,2082.0,2080.0,1.20189333]
[1772635950455,3.73609372,2081.7,2080.0,1.20189333]
[1772635951036,2.1401093,2081.8,2079.4,5.97392346]
[1772635951037,3.73609372,2081.4,2079.4,5.97392346]
[1772635951376,2.08417166,2081.5,2079.4,5.97392346]
[1772635951377,2.08417166,2081.1,2079.4,3.74775667]
[1772635951538,1.2013455,2081.0,2079.4,4.94999621]
[1772635951927,1.2013455,2081.0,2079.5,3.74775667]
[1772635952352,1.20105693,2081.6,2079.7,3.74775667]
[1772635952552,1.20094153,2081.7,2079.9,3.74775667]
[1772635952852,1.20094153,2081.7,2080.1,3.74775667]
[1772635953060,1.20094153,2081.7,2080.2,2.83314311]
[1772635953263,1.20094153,2081.7,2080.2,1.238]
[1772635953627,4.80376615,2081.9,2080.3,1.20174974]
[1772635954030,4.80376615,2081.9,2080.4,3.74775667]
[1772635954264,4.80376615,2081.9,2080.3,1.20174974]
[1772635954464,4.80376615,2081.9,2080.4,3.74775667]
[1772635955158,4.80376615,2081.9,2080.6,3.74775667]
[1772635955567,4.80330467,2082.1,2080.6,3.74775667]
[1772635955568,1.20071082,2082.1,2080.6,3.74775667]
[1772635955731,4.80284328,2082.3,2080.8,3.74775667]
[1772635956333,0.065536,2082.8,2080.7,1.20151871]
[1772635956334,4.80104978,2082.9,2081.0,3.74775667]
[1772635956552,4.80104978,2082.9,2081.1,3.74775667]
[1772635957059,4.80104978,2082.9,2081.3,3.74775667]
[1772635957561,1.20024965,2083.0,2081.6,1.20099923]
[1772635957562,1.20023002,2083.0,2081.6,1.20099923]
[1772635957880,1.20023002,2083.0,2081.6,4.9487559]
[1772635958090,0.065536,2082.9,2081.2,1.20123005]
[1772635958263,5.18162972,2082.9,2081.2,1.20123005]
[1772635958455,0.002,2082.0,2081.2,1.20123005]
[1772635958662,0.002,2082.0,2081.1,4.94901562]
[1772635958974,3.80162972,2081.9,2080.0,9.79138506]
[1772635959176,3.73609372,2081.8,2080.0,9.79138506]
[1772635959484,3.73609372,2081.8,2079.9,1.20197889]
[1772635959485,3.80162972,2081.6,2079.9,1.20197889]
[1772635959695,3.80162972,2081.6,2079.7,4.80792345]
[1772635959696,1.20105693,2081.5,2079.7,4.80792345]
[1772635959881,1.20105693,2081.5,2079.7,3.74775667]
[1772635960711,4.80422772,2081.8,2079.9,3.74775667]
[1772635960712,1.20088385,2081.8,2079.9,3.74775667]
[1772635960860,1.20088385,2081.8,2080.3,3.74775667]
[1772635961182,1.20088385,2081.8,2080.4,4.98275667]
[1772635961377,4.80527052,2082.0,2080.5,3.74775667]
[1772635961583,1.2008465,2081.9,2080.5,3.74775667]
[1772635961782,0.002,2082.0,2080.7,3.74775667]
[1772635962780,2.57839235,2082.7,2081.0,3.74775667]
[1772635963588,2.57839235,2082.7,2081.1,4.98075667]
[1772635963787,2.57839235,2082.7,2081.2,4.94898672]
[1772635964369,1.20039235,2082.7,2081.2,4.94898672]
[1772635964573,8.69954996,2083.1,2081.7,3.74775667]
[1772635964574,0.1619966,2083.1,2081.7,3.74775667]
[1772635964764,2.90742991,2084.4,2081.2,1.20123005]
[1772635964765,8.53248683,2085.0,2082.2,3.74775667]
[1772635964960,8.53248683,2085.0,2082.6,3.74775667]
[1772635964961,3.73609372,2084.7,2082.6,3.74775667]
[1772635965165,2.90742991,2084.8,2082.6,3.74775667]
[1772635965166,3.80162972,2084.6,2082.6,3.74775667]
[1772635965368,3.73609372,2084.3,2082.0,3.74775667]
[1772635965566,0.14948499,2084.2,2082.0,3.74775667]
[1772635965781,0.14948499,2084.2,2082.1,4.94846749]
[1772635965782,1.19967368,2083.9,2082.1,4.94846749]
[1772635965987,1.19967368,2083.9,2082.2,3.74775667]
[1772635966200,1.375,2084.5,2082.4,3.74775667]
[1772635966201,1.19932837,2084.5,2082.4,3.74775667]
[1772635966405,6.17257506,2084.4,2082.4,3.74775667]
[1772635966912,0.065536,2084.3,2082.4,3.74775667]
[1772635967401,1.19932837,2084.5,2082.6,3.74775667]
[1772635967971,4.7973135,2084.7,2083.0,3.74775667]
[1772635969276,1.19909827,2084.9,2083.0,3.74775667]
[1772635969724,3.57831045,2084.0,2082.5,1.297536]
[1772635969866,2.90742991,2084.1,2082.0,3.92474863]
[1772635969867,1.19978883,2083.7,2082.0,3.92474863]
[1772635970071,1.373,2083.6,2082.0,3.92474863]
[1772635970297,2.57178883,2083.7,2082.0,3.92474863]
[1772635970980,0.21502099,2083.6,2082.0,3.92474863]
[1772635971269,0.21502099,2083.6,2081.8,5.01091882]
[1772635971270,3.79333144,2083.6,2081.8,5.01091882]
[1772635971520,3.79333144,2083.6,2081.8,3.81007509]
[1772635971692,3.79333144,2083.2,2081.8,3.81007509]
[1772635971891,0.065536,2083.0,2081.8,3.81007509]
[1772635972299,1.371,2082.9,2081.8,5.01094121]
[1772635972497,1.371,2082.8,2081.8,5.01094121]
[1772635972697,1.371,2082.8,2081.8,3.81007509]
[1772635973416,1.371,2082.8,2082.5,0.001]
[1772635973719,1.371,2082.7,2081.8,5.01092963]
[1772635973921,1.20042254,2082.6,2081.8,3.81007509]
[1772635974499,2.57024965,2082.9,2081.8,5.01095452]
[1772635974698,2.57024965,2082.9,2081.8,3.81007509]
[1772635975392,1.37,2082.8,2081.8,5.01094805]
[1772635975695,1.20024965,2082.9,2081.8,5.01095374]
[1772635975900,2.57013441,2083.1,2081.8,5.01095374]
[1772635976524,2.56913441,2083.1,2081.8,5.01095374]
[1772635976923,4.86519268,2083.5,2081.9,3.92474863]
[1772635976924,4.79985288,2083.4,2081.9,3.92474863]
[1772635977705,0.065536,2083.3,2081.9,3.92474863]
[1772635978095,1.2000768,2083.2,2082.1,3.92474863]
[1772635978302,1.2000768,2083.2,2081.9,1.20078671]
[1772635978918,1.368,2083.1,2081.9,1.20078671]
[1772635979315,1.2000768,2083.2,2081.8,5.01092117]
[1772635979514,1.368,2083.1,2081.8,3.81007509]
[1772635979714,3.64384645,2083.0,2081.8,3.81007509]
[1772635980016,1.20030727,2082.8,2081.8,5.010956]
[1772635980216,0.14948499,2083.3,2081.8,5.010956]
[1772635980217,1.2000768,2083.2,2081.8,5.010956]
[1772635980407,1.368,2083.1,2081.8,5.010956]
[1772635981126,1.2000768,2083.2,2081.8,5.010956]
[1772635981426,1.367,2083.1,2081.8,5.010956]
[1772635981628,1.2000768,2083.2,2081.9,3.92474863]
[1772635981858,0.065536,2083.1,2081.8,3.81007509]
[1772635981999,3.64384645,2082.8,2081.8,3.81007509]
[1772635982198,1.20036491,2082.7,2081.0,1.2013455]
[1772635982430,1.20036491,2082.7,2081.0,5.12609413]
[1772635982643,0.065536,2082.6,2081.0,5.12609413]
[1772635982931,1.367,2082.5,2081.1,3.92474863]
[1772635983099,1.31898079,2082.5,2081.1,3.92474863]
[1772635983307,1.367,2082.6,2081.1,3.92474863]
[1772635984114,1.20053784,2082.4,2081.3,3.92474863]
[1772635984516,1.20019203,2083.0,2081.3,3.92474863]
[1772635985019,1.366,2083.3,2081.4,3.92474863]
[1772635985202,1.1999616,2083.4,2081.6,3.92474863]
[1772635985401,1.1999616,2083.4,2081.7,3.92474863]